{"text_format":"1","workbook":"xlsx","n_sheets":3,"sheets":["BELBIN","Értékelés","Szerepek"],"not_rendered":{"charts":0,"images":0,"macros":1,"external_links":0,"defined_names":0,"comments":0,"pivot_tables":0},"unopened":[],"bounds":{"document_bytes":16777216,"sheet_cells":100000,"rows_first":2000,"rows_last":500,"rows_between":2000,"halvings":0,"cell_chars":16384,"cell_head_chars":4096},"cells_cut":0,"cells_raw":0,"read":"whole","date_system":"1900"}

{"sheet":"BELBIN","index":0,"n_rows":349,"n_cols":13,"rows_kept":349,"cut":false,"hidden":false,"merged":[[343,5,343,14],[344,4,344,14],[347,3,347,4],[347,12,347,13],[348,2,349,4],[348,12,349,14],[337,5,337,14],[338,5,338,14],[339,5,339,14],[340,5,340,14],[341,5,341,14],[342,5,342,14],[297,3,297,4],[297,12,297,13],[298,2,299,4],[298,12,299,14],[335,4,335,14],[336,5,336,14],[289,5,289,14],[290,5,290,14],[291,5,291,14],[292,5,292,14],[293,5,293,14],[294,4,294,14],[248,2,249,4],[248,12,249,14],[285,4,285,14],[286,5,286,14],[287,5,287,14],[288,5,288,14],[241,5,241,14],[242,5,242,14],[243,5,243,14],[244,4,244,14],[247,3,247,4],[247,12,247,13],[235,4,235,14],[236,5,236,14],[237,5,237,14],[238,5,238,14],[239,5,239,14],[240,5,240,14],[190,5,190,14],[191,5,191,14],[192,5,192,14],[193,5,193,14],[194,4,194,14],[197,3,197,4],[197,12,197,13],[198,2,199,4],[198,12,199,14],[186,5,186,14],[187,5,187,14],[188,5,188,14],[189,5,189,14],[144,4,144,14],[147,3,147,4],[147,12,147,13],[148,2,149,4],[148,12,149,14],[185,4,185,14],[138,5,138,14],[139,5,139,14],[140,5,140,14],[141,5,141,14],[142,5,142,14],[143,5,143,14],[98,2,99,4],[98,12,99,14],[3,2,15,14],[135,4,135,14],[136,5,136,14],[137,5,137,14],[85,4,85,14],[86,5,86,14],[87,5,87,14],[88,5,88,14],[89,5,89,14],[90,5,90,14],[91,5,91,14],[92,5,92,14],[93,5,93,14],[94,4,94,14],[97,3,97,4],[97,12,97,13],[0,2,0,14],[1,2,1,14],[18,12,19,14],[18,2,19,4],[35,4,35,14],[42,5,42,14],[43,5,43,14],[44,4,44,14],[48,2,49,4],[47,3,47,4],[48,12,49,14],[47,12,47,13],[36,5,36,14],[37,5,37,14],[38,5,38,14],[39,5,39,14],[40,5,40,14],[41,5,41,14],[18,8,19,8]]}
[null,null,"BELBIN-teszt"]
[null,null,"Belbin-féle csapattag-típus kérdőív"]
[]
[null,null,"Útmutató:\nAz alábbi kérdőív hét részből áll. Minden rész egy megkezdett mondatot, és annak nyolcféle befejezését tartalmazza. Minden egyes résznél tíz pontot osszon szét az egyes mondatbefejezések között aszerint, hogy melyik írja le legtalálóbban az Ön viselkedését. A pontokat bármilyen arányban eloszthatja: akár az összes válasz mellé írhat pontokat (a tíz pontot szétosztva), de közülük egyre is adhat tíz pontot. A pontszámokat írja be az alábbi táblázatba."]
[]
[]
[]
[]
[]
[]
[]
[]
[]
[]
[]
[]
[]
[]
[null,null,"<---\nVISSZA",null,null,null,null,null,null,null,null,null,"--->\nTOVÁBB"]
[]
[null,null,null,null,null,null,null,null,"Figyelem! A művelet nem visszavonható!"]
[]
[]
[]
[]
[]
[]
[]
[]
[]
[]
[]
[]
[]
[]
[null,null,null,"I.","Azzal veszem ki a részem a csapatmunkában, hogy…"]
[null,null,null,"a)",3,"gyorsan észreveszem és megragadom a kínálkozó lehetőségeket."]
[null,null,null,"b)",1,"szinte bárkivel együtt tudok dolgozni."]
[null,null,null,"c)",1,"sosem fogyok ki az ötletekből."]
[null,null,null,"d)",1,"kihozom a többiekből, amit a csapatért tenni tudnak."]
[null,null,null,"e)",1,"mindent végigcsinálok, amit elkezdtem."]
[null,null,null,"f)",1,"ha a várható végeredmény indokolja, kész vagyok átmenetileg népszerűtlenné válni."]
[null,null,null,"g)",1,"ismerős helyzetekben gyorsan meg tudom ítélni, mely lépések lennének célravezetők."]
[null,null,null,"h)",1,"előítélet és elfogultság nélkül teszek alternatív javaslatokat, amelyeket indokolni is tudok."]
[null,null,null,null,{"$f":"IF(AND(SUM(E37:E44)>0,NOT(SUM(E37:E44)=10)),\"Kérem, pontosan 10 pontot osszon szét az állsítások között!\",\"\")","v":""}]
[]
[]
[null,null,null,"(Tájékoztató)",null,null,null,null,null,null,null,null,"(Második rész)"]
[null,null,"<---\nVISSZA",null,null,null,null,null,null,null,null,null,"--->\nTOVÁBB"]
[]
[]
[]
[]
[]
[]
[]
[]
[]
[]
[]
[]
[]
[]
[]
[]
[]
[]
[]
[]
[]
[]
[]
[]
[]
[]
[]
[]
[]
[]
[]
[]
[]
[]
[]
[]
[null,null,null,"II.","A csapatmunkában talán hátrányos, hogy…"]
[null,null,null,"a)",3,"kényelmetlenül érzem magam egy megbeszélésen, ha az nincs megfelelő módon előkészítve és irányítva."]
[null,null,null,"b)",1,"túlságosan támogatom azokat a javaslatokat, amelyeknek a csoport nem szentel kellő figyelmet."]
[null,null,null,"c)",1,"ha új ötletekkel lehet előhozakodni, többet beszélek a kelleténél."]
[null,null,null,"d)",1,"túlságosan tárgyilagosan gondolkodom ahhoz, hogy lelkesedjem a közös célokért."]
[null,null,null,"e)",1,"erőszakosnak és önkényesnek látszom, amikor megpróbálom elérni, hogy valamilyen problémát megoldjunk."]
[null,null,null,"f)",1,"nem tudok vezéregyéniség módjára viselkedni, aminek talán az az oka, hogy túlságosan is figyelembe veszem a többiek véleményét."]
[null,null,null,"g)",1,"ha valami új jut eszembe, hosszasan elmerengek rajta, és elmulasztom, ami közben történik."]
[null,null,null,"h)",1,"munkatársaim szerint túl sokat aggódom feleslegesen a részletek és a várható nehézségek miatt."]
[null,null,null,null,{"$f":"IF(AND(SUM(E87:E94)>0,NOT(SUM(E87:E94)=10)),\"Kérem, pontosan 10 pontot osszon szét az állsítások között!\",\"\")","v":""}]
[]
[]
[null,null,null,"(Első rész)",null,null,null,null,null,null,null,null,"(Harmadik rész)"]
[null,null,"<---\nVISSZA",null,null,null,null,null,null,null,null,null,"--->\nTOVÁBB"]
[]
[]
[]
[]
[]
[]
[]
[]
[]
[]
[]
[]
[]
[]
[]
[]
[]
[]
[]
[]
[]
[]
[]
[]
[]
[]
[]
[]
[]
[]
[]
[]
[]
[]
[]
[]
[null,null,null,"III.","Ha másokkal közös projekten dolgozom, akkor…"]
[null,null,null,"a)",1,"anélkül tudom befolyásolni őket, hogy ezt nyomasztónak éreznék."]
[null,null,null,"b)",1,"állandóan figyelek, nehogy gondatlanságból hibát kövessünk el, vagy kihagyjunk valamit."]
[null,null,null,"c)",1,"cselekvésre ösztönzöm őket, ha azt tapasztalom, hogy csak az időt vesztegetjük, és nem teszünk lépéseket célunk megvalósítására."]
[null,null,null,"d)",3,"lehet számítani rá, hogy eredeti ötletekkel fogok előállni."]
[null,null,null,"e)",1,"ha a csapat érdeke megkívánja, mindig támogatom az értelmes javaslatokat."]
[null,null,null,"f)",1,"érdekelnek a legújabb ötletek és fejlemények."]
[null,null,null,"g)",1,"megfontolt ötleteket hozok, és ezt a többiek is értékelik."]
[null,null,null,"h)",1,"a munkaszervezésben lehet rám támaszkodni."]
[null,null,null,null,{"$f":"IF(AND(SUM(E137:E144)>0,NOT(SUM(E137:E144)=10)),\"Kérem, pontosan 10 pontot osszon szét az állsítások között!\",\"\")","v":""}]
[]
[]
[null,null,null,"(Második rész)",null,null,null,null,null,null,null,null,"(Negyedik rész)"]
[null,null,"<---\nVISSZA",null,null,null,null,null,null,null,null,null,"--->\nTOVÁBB"]
[]
[]
[]
[]
[]
[]
[]
[]
[]
[]
[]
[]
[]
[]
[]
[]
[]
[]
[]
[]
[]
[]
[]
[]
[]
[]
[]
[]
[]
[]
[]
[]
[]
[]
[]
[]
[null,null,null,"IV.","A csapatmunkához való viszonyomat az jellemzi, hogy…"]
[null,null,null,"a)",1,"úgy érzem, lehetőséget jelent számomra, hogy munkatársaimat jobban megismerjem."]
[null,null,null,"b)",1,"akkor is hangot adok ellenvéleményemnek, ha kisebbségben maradok."]
[null,null,null,"c)",3,"általában meg tudom cáfolni a téves nézeteket."]
[null,null,null,"d)",1,"tudom, hogyan kell hozzáfogni egy terv gyakorlati megvalósításához."]
[null,null,null,"e)",1,"kerülöm a túlságosan kézenfekvő megoldásokat és a járatlan utat keresem."]
[null,null,null,"f)",1,"a közös munka során mindig a tökéletesre törekszem."]
[null,null,null,"g)",1,"hasznosítom csoporton kívüli kapcsolataimat."]
[null,null,null,"h)",1,"minden vélemény érdekel, de ha dönteni kell, nem sokáig habozom."]
[null,null,null,null,{"$f":"IF(AND(SUM(E187:E194)>0,NOT(SUM(E187:E194)=10)),\"Kérem, pontosan 10 pontot osszon szét az állsítások között!\",\"\")","v":""}]
[]
[]
[null,null,null,"(Harmadik rész)",null,null,null,null,null,null,null,null,"(Ötödik rész)"]
[null,null,"<---\nVISSZA",null,null,null,null,null,null,null,null,null,"--->\nTOVÁBB"]
[]
[]
[]
[]
[]
[]
[]
[]
[]
[]
[]
[]
[]
[]
[]
[]
[]
[]
[]
[]
[]
[]
[]
[]
[]
[]
[]
[]
[]
[]
[]
[]
[]
[]
[]
[]
[null,null,null,"V.","Azért lelem örömömet a munkában, mert…"]
[null,null,null,"a)",3,"szeretek különféle helyzeteket elemezni és választási lehetőségeket mérlegelni."]
[null,null,null,"b)",1,"érdekel a problémák gyakorlati megoldása."]
[null,null,null,"c)",1,"szeretem érezni, hogy részem van a csoporton belüli jó munkakapcsolatok kialakításában."]
[null,null,null,"d)",1,"nagymértékben tudom befolyásolni, hogy milyen döntés születik."]
[null,null,null,"e)",1,"érdekes emberekkel találkozhatok."]
[null,null,null,"f)",1,"meg tudom győzni az embereket arról, hogy mit kell tenni."]
[null,null,null,"g)",1,"elememben vagyok, ha egy feladatra összpontosíthatok."]
[null,null,null,"h)",1,"szeretem használni a képzelőerőmet."]
[null,null,null,null,{"$f":"IF(AND(SUM(E237:E244)>0,NOT(SUM(E237:E244)=10)),\"Kérem, pontosan 10 pontot osszon szét az állsítások között!\",\"\")","v":""}]
[]
[]
[null,null,null,"(Negyedik rész)",null,null,null,null,null,null,null,null,"(Hatodik rész)"]
[null,null,"<---\nVISSZA",null,null,null,null,null,null,null,null,null,"--->\nTOVÁBB"]
[]
[]
[]
[]
[]
[]
[]
[]
[]
[]
[]
[]
[]
[]
[]
[]
[]
[]
[]
[]
[]
[]
[]
[]
[]
[]
[]
[]
[]
[]
[]
[]
[]
[]
[]
[]
[null,null,null,"VI.","Ha hirtelen nehéz feladatot kapok, melyet ismeretlen emberekkel, rövid idő alatt kell megoldani, akkor…"]
[null,null,null,"a)",1,"visszavonulok és elgondolkodom a megoldáson, mielőtt munkához látnék."]
[null,null,null,"b)",1,"megpróbálok együttdolgozni azzal a személlyel, aki a leginkább konstruktív módon viszonyul a feladathoz – bármilyen személyiség is legyen."]
[null,null,null,"c)",1,"megpróbálom felosztani a feladatot és megállapítani, hogy ki melyik részét tudná elvégezni."]
[null,null,null,"d)",3,"biztosan nem kerülünk időzavarba, hiszen szeretem mihamarabb megoldani a feladatokat."]
[null,null,null,"e)",1,"nem veszítem el a nyugalmamat, hanem higgadtan mérlegelem a teendőket."]
[null,null,null,"f)",1,"akkor sem veszítem szem elől a célt, bármilyen nyomás nehezedik rám."]
[null,null,null,"g)",1,"kész vagyok kézbe venni az irányítást, ha úgy látom, hogy nem sikerül előrelépnünk."]
[null,null,null,"h)",1,"elindítom a beszélgetést, hogy másokat is gondolkodásra késztessek, és valahogy elkezdjük a közös munkát."]
[null,null,null,null,{"$f":"IF(AND(SUM(E287:E294)>0,NOT(SUM(E287:E294)=10)),\"Kérem, pontosan 10 pontot osszon szét az állsítások között!\",\"\")","v":""}]
[]
[]
[null,null,null,"(Ötödik rész)",null,null,null,null,null,null,null,null,"(Hetedik rész)"]
[null,null,"<---\nVISSZA",null,null,null,null,null,null,null,null,null,"--->\nTOVÁBB"]
[]
[]
[]
[]
[]
[]
[]
[]
[]
[]
[]
[]
[]
[]
[]
[]
[]
[]
[]
[]
[]
[]
[]
[]
[]
[]
[]
[]
[]
[]
[]
[]
[]
[]
[]
[]
[null,null,null,"VII.","A közös munka során felmerülhet az a probléma, hogy…"]
[null,null,null,"a)",1,"türelmetlennek mutatkozom azokkal szemben, aki gátolja az előrelépést."]
[null,null,null,"b)",1,"kritikát kapok, mert túlságosan elemző és nem eléggé intuitív módon gondolkodom."]
[null,null,null,"c)",1,"feltartom a csapatot, mert biztos akarok lenni abban, hogy mindent rendesen elvégeztünk."]
[null,null,null,"d)",3,"könnyen elunom magam, mert csak egy-két olyan ember van, akinek a jelenléte ösztönzőleg hat rám."]
[null,null,null,"e)",1,"nehezen kezdem el a munkát, ha még nem tettük világossá a célokat."]
[null,null,null,"f)",1,"nehezen tudom elmagyarázni bonyolult gondolataimat."]
[null,null,null,"g)",1,"olyasmit követelek másoktól, amit magam nem tudnék teljesíteni."]
[null,null,null,"h)",1,"ha sokan nem értenek velem egyet, nem ragaszkodom eléggé a saját véleményemhez."]
[null,null,null,null,{"$f":"IF(AND(SUM(E337:E344)>0,NOT(SUM(E337:E344)=10)),\"Kérem, pontosan 10 pontot osszon szét az állsítások között!\",\"\")","v":""}]
[]
[]
[null,null,null,"(Hatodik rész)",null,null,null,null,null,null,null,null,"(Kiértékelés)"]
[null,null,"<---\nVISSZA",null,null,null,null,null,null,null,null,null,"--->\nTOVÁBB"]

{"sheet":"Értékelés","index":1,"n_rows":38,"n_cols":17,"rows_kept":38,"cut":false,"hidden":false,"merged":[[18,2,18,3],[19,2,19,3],[1,12,2,14],[1,2,2,4],[4,5,4,11],[14,12,14,13],[1,6,1,7],[1,9,1,10],[2,6,2,7],[2,9,2,10],[37,3,37,4],[29,3,29,4],[29,5,29,7],[30,5,30,7],[31,5,31,7],[32,5,32,7],[33,5,33,7],[34,5,34,7],[35,5,35,7],[36,5,36,7],[37,5,37,7],[30,3,30,4],[31,3,31,4],[32,3,32,4],[33,3,33,4],[34,3,34,4],[37,8,37,10],[30,11,30,13],[31,11,31,13],[32,11,32,13],[33,11,33,13],[34,11,34,13],[35,11,35,13],[36,11,36,13],[37,11,37,13],[30,8,30,10],[31,8,31,10],[32,8,32,10],[33,8,33,10],[34,8,34,10],[35,8,35,10],[23,5,23,11],[25,5,25,11],[3,2,3,4],[3,12,3,14],[36,8,36,10],[36,3,36,4],[35,3,35,4],[24,2,24,14],[29,8,29,10],[29,11,29,13],[20,2,20,3],[21,2,21,3],[22,2,22,3],[15,2,15,3],[16,2,16,3],[17,2,17,3]]}
[]
[null,null,"<---\nVISSZA",null,null,null,"Elsődleges szerep",null,null,"Másodlagos szerep",null,null,"--->\nTOVÁBB"]
[null,null,null,null,null,null,{"$f":"IF(SUM($M$16:$M$23)=0,\"-------\",INDEX($C$16:$Q$23,MATCH(1,$Q$16:$Q$23,0),1))","v":"FORRÁSFELTÁRÓ"},null,null,{"$f":"IF(SUM($M$16:$M$23)=0,\"-------\",INDEX($C$16:$Q$23,MATCH(2,$Q$16:$Q$23,0),1))","v":"HELYZETÉRTÉKELŐ"}]
[null,null,"a teszthez",null,null,null,null,null,null,null,null,null,"a részletes leírásokhoz"]
[null,null,null,null,null,"Ön az alábbi válaszokat adta a teszt során"]
[null,null,null,null,null,"I.","II.","III.","IV.","V.","VI.","VII."]
[null,null,null,null,"a)",{"$f":"BELBIN!E37","v":3},{"$f":"BELBIN!E87","v":3},{"$f":"BELBIN!E137","v":1},{"$f":"BELBIN!E187","v":1},{"$f":"BELBIN!E237","v":3},{"$f":"BELBIN!E287","v":1},{"$f":"BELBIN!E337","v":1}]
[null,null,null,null,"b)",{"$f":"BELBIN!E38","v":1},{"$f":"BELBIN!E88","v":1},{"$f":"BELBIN!E138","v":1},{"$f":"BELBIN!E188","v":1},{"$f":"BELBIN!E238","v":1},{"$f":"BELBIN!E288","v":1},{"$f":"BELBIN!E338","v":1}]
[null,null,null,null,"c)",{"$f":"BELBIN!E39","v":1},{"$f":"BELBIN!E89","v":1},{"$f":"BELBIN!E139","v":1},{"$f":"BELBIN!E189","v":3},{"$f":"BELBIN!E239","v":1},{"$f":"BELBIN!E289","v":1},{"$f":"BELBIN!E339","v":1}]
[null,null,null,null,"d)",{"$f":"BELBIN!E40","v":1},{"$f":"BELBIN!E90","v":1},{"$f":"BELBIN!E140","v":3},{"$f":"BELBIN!E190","v":1},{"$f":"BELBIN!E240","v":1},{"$f":"BELBIN!E290","v":3},{"$f":"BELBIN!E340","v":3}]
[null,null,null,null,"e)",{"$f":"BELBIN!E41","v":1},{"$f":"BELBIN!E91","v":1},{"$f":"BELBIN!E141","v":1},{"$f":"BELBIN!E191","v":1},{"$f":"BELBIN!E241","v":1},{"$f":"BELBIN!E291","v":1},{"$f":"BELBIN!E341","v":1}]
[null,null,null,null,"f)",{"$f":"BELBIN!E42","v":1},{"$f":"BELBIN!E92","v":1},{"$f":"BELBIN!E142","v":1},{"$f":"BELBIN!E192","v":1},{"$f":"BELBIN!E242","v":1},{"$f":"BELBIN!E292","v":1},{"$f":"BELBIN!E342","v":1}]
[null,null,null,null,"g)",{"$f":"BELBIN!E43","v":1},{"$f":"BELBIN!E93","v":1},{"$f":"BELBIN!E143","v":1},{"$f":"BELBIN!E193","v":1},{"$f":"BELBIN!E243","v":1},{"$f":"BELBIN!E293","v":1},{"$f":"BELBIN!E343","v":1}]
[null,null,null,null,"h)",{"$f":"BELBIN!E44","v":1},{"$f":"BELBIN!E94","v":1},{"$f":"BELBIN!E144","v":1},{"$f":"BELBIN!E194","v":1},{"$f":"BELBIN!E244","v":1},{"$f":"BELBIN!E294","v":1},{"$f":"BELBIN!E344","v":1}]
[null,null,null,null,null,{"$f":"F6","v":"I."},{"$f":"G6","v":"II."},"III.","IV.","V.","VI.","VII.","ÖSSZESEN",null,null,"sorszám"]
[null,null,"VÁLLALATÉPÍTŐ",null,null,{"$f":"F13","v":1},{"$f":"G7","v":3},{"$f":"H14","v":1},{"$f":"I10","v":1},{"$f":"J8","v":1},{"$f":"K12","v":1},{"$f":"L11","v":1},{"$f":"N16","v":9},{"$f":"SUM(F16:L16)","v":9},null,{"$f":"RANK(M16,$M$16:$M$23,0)","v":3},{"$f":"IF(COUNTIF($P$16:P16,P16)>1,P16+COUNTIF($P$16:P16,P16)-1,P16)","v":3}]
[null,null,"ELNÖK",null,null,{"$f":"F10","v":1},{"$f":"G8","v":1},{"$f":"H7","v":1},{"$f":"I14","v":1},{"$f":"J12","v":1},{"$f":"K9","v":1},{"$f":"L13","v":1},{"$f":"N17","v":7},7,null,6,{"$f":"IF(COUNTIF($P$16:P17,P17)>1,P17+COUNTIF($P$16:P17,P17)-1,P17)","v":6}]
[null,null,"SERKENTŐ",null,null,{"$f":"F12","v":1},{"$f":"G11","v":1},{"$f":"H9","v":1},{"$f":"I8","v":1},{"$f":"J10","v":1},{"$f":"K13","v":1},{"$f":"L7","v":1},7,7,null,6,{"$f":"IF(COUNTIF($P$16:P18,P18)>1,P18+COUNTIF($P$16:P18,P18)-1,P18)","v":7}]
[null,null,"ÖTLETGYÁRTÓ",null,null,{"$f":"F9","v":1},{"$f":"G13","v":1},{"$f":"H10","v":3},{"$f":"I11","v":1},{"$f":"J14","v":1},{"$f":"K7","v":1},{"$f":"L12","v":1},9,9,null,3,{"$f":"IF(COUNTIF($P$16:P19,P19)>1,P19+COUNTIF($P$16:P19,P19)-1,P19)","v":4}]
[null,null,"FORRÁSFELTÁRÓ",null,null,{"$f":"F7","v":3},{"$f":"G9","v":1},{"$f":"H12","v":1},{"$f":"I13","v":1},{"$f":"J11","v":1},{"$f":"K14","v":1},{"$f":"L10","v":3},11,11,null,1,{"$f":"IF(COUNTIF($P$16:P20,P20)>1,P20+COUNTIF($P$16:P20,P20)-1,P20)","v":1}]
[null,null,"HELYZETÉRTÉKELŐ",null,null,{"$f":"F14","v":1},{"$f":"G10","v":1},{"$f":"H13","v":1},{"$f":"I9","v":3},{"$f":"J7","v":3},{"$f":"K11","v":1},{"$f":"L8","v":1},11,11,null,1,{"$f":"IF(COUNTIF($P$16:P21,P21)>1,P21+COUNTIF($P$16:P21,P21)-1,P21)","v":2}]
[null,null,"CSAPATJÁTÉKOS",null,null,{"$f":"F8","v":1},{"$f":"G12","v":1},{"$f":"H11","v":1},{"$f":"I7","v":1},{"$f":"J9","v":1},{"$f":"K8","v":1},{"$f":"L14","v":1},7,7,null,6,{"$f":"IF(COUNTIF($P$16:P22,P22)>1,P22+COUNTIF($P$16:P22,P22)-1,P22)","v":8}]
[null,null,"MEGVALÓSÍTÓ",null,null,{"$f":"F11","v":1},{"$f":"G14","v":1},{"$f":"H8","v":1},{"$f":"I12","v":1},{"$f":"J13","v":1},{"$f":"K10","v":3},{"$f":"L9","v":1},9,9,null,3,{"$f":"IF(COUNTIF($P$16:P23,P23)>1,P23+COUNTIF($P$16:P23,P23)-1,P23)","v":5}]
[null,null,null,null,null,{"$f":"IF(SUM(F7:L14)=0,\"Kérem, töltse ki a tesztet az első oldalon!\",IF(AND(SUM(F7:F14)=10,SUM(G7:G14)=10,SUM(H7:H14)=10,SUM(I7:I14)=10,SUM(J7:J14)=10,SUM(K7:K14)=10,SUM(L7:L14)=10),\"\",\"HIBÁS ADATOK! Kérem, ellenőrizze az előző oldalon megadott válaszokat!\"))","v":""}]
[null,null,"A pontszámok rövid értelmezése:\nA legtöbb pontot kapott funkció lesz az, amelyben a csapatmunka során a leginkább sikeresnek bizonyulhat. A második legmagasabb pontszám másodlagos csoportszerepét jelzi, amelyet szintén be tud tölteni, ha az elsőre nincs szükség. A két legalacsonyabb pontszám azokhoz a funkciókhoz tartozik, amelyek betöltésére valószínűleg kevéssé alkalmas. Ahelyett, hogy ezeket pótolni próbálná, keressen olyan munkatársakat, akik ebből a szempontból tehetségesebbek."]
[null,null,null,null,null,"Görgessen lejjebb, ha a szerepek rövid jellemzését szeretné elolvasni!"]
[]
[]
[]
[null,null,null,"Szerep",null,"Jellemzői",null,null,"Előnyös\ntulajdonságai",null,null,"Lehetséges\nhibái"]
[null,null,null,"VÁLLALATÉPÍTŐ",null,"konzervatív,\nkötelességtudó,\nkiszámítható",null,null,"jó szervező,\ngyakorlatias gondolkodású,\nkemény munkához szokott,\nfegyelmezett",null,null,"kissé rugalmatlan,\nkevéssé fogékony az új ötletek iránt"]
[null,null,null,"ELNÖK",null,"nyugodt,\nbiztos magában,\nkellő önuralommal rendelkezik",null,null,"képes mindenkit előítéletek nélkül és pusztán érdemei alapján értékelni,\ncélorientált",null,null,"átlagosan kreatív és intelligens"]
[null,null,null,"SERKENTŐ",null,"aktív,\ndinamikus",null,null,"küzd a cselekvésképtelenség, a hatékonyság hiánya, az önelégültség, az önáltatás ellen",null,null,"ingerültségre, türelmetlenségre és erőszakra hajlamos"]
[null,null,null,"ÖTLETGYÁRTÓ",null,"individualista,\nkomoly gondolkodású,\núj utakat keres",null,null,"a szellem embere,\nképzeletgazdag,\nnagy tudású,\nkiváló értelmi képességekkel rendelkezik",null,null,"a fellegekben jár,\nnem törődik a részletekkel és a formaságokkal"]
[null,null,null,"FORRÁSFELTÁRÓ",null,"extravertált,\ntörekvő,\nérdeklődő,\nkommunikatív",null,null,"jó kapcsolattartó,\njól értesült,\nmeg tud felelni a kihívásoknak",null,null,"a kezdeti lelkesedés lankadásával elveszíti érdeklődését"]
[null,null,null,"HELYZETÉRTÉKELŐ",null,"megfontolt,\nérzelmek nélkül, józanon ítél",null,null,"jó ítélőképességgel rendelkezik,\nelőrelátó, gyakorlatias",null,null,"alulmotivált,\nmásokat sem inspirál"]
[null,null,null,"CSAPATJÁTÉKOS",null,"társas hajlamú,\njóindulatú,\nérzékeny",null,null,"jól reagál különféle személyiségekre és szituációkra,\nerősíti a csapatszellemet",null,null,"a kritikus pillanatokban határozatlan"]
[null,null,null,"MEGVALÓSÍTÓ",null,"precíz,\nrendszerető,\nlelkiismeretes",null,null,"tökéletességre törekszik,\nnem hagy semmit befejezetlenül",null,null,"csekélységek miatt aggódik,\nnem tudja elengedni magát"]

{"sheet":"Szerepek","index":2,"n_rows":398,"n_cols":13,"rows_kept":398,"cut":false,"hidden":false,"merged":[[19,8,19,9],[20,8,20,9],[21,8,21,9],[22,8,22,9],[0,2,0,14],[1,2,1,14],[18,2,19,4],[18,12,19,14],[3,2,12,14],[15,8,15,9],[16,8,16,9],[17,8,17,9],[18,8,18,9],[29,2,29,14],[30,2,30,14],[32,2,44,14],[47,2,48,4],[47,12,48,14],[47,8,48,8],[180,2,180,14],[147,8,148,8],[79,2,79,14],[80,2,80,14],[82,2,94,14],[97,2,98,4],[97,12,98,14],[129,2,129,14],[97,8,98,8],[130,2,130,14],[132,2,144,14],[147,2,148,4],[147,12,148,14],[179,2,179,14],[297,2,298,4],[297,12,298,14],[297,8,298,8],[247,8,248,8],[182,2,194,14],[197,2,198,4],[197,12,198,14],[229,2,229,14],[230,2,230,14],[232,2,244,14],[197,8,198,8],[247,2,248,4],[247,12,248,14],[279,2,279,14],[280,2,280,14],[282,2,294,14],[329,2,329,14],[330,2,330,14],[332,2,344,14],[347,2,348,4],[347,12,348,14],[347,8,348,8],[379,2,379,14],[382,2,394,14],[397,2,398,4],[397,12,398,14],[397,8,398,8],[380,2,380,14]]}
[null,null,"BELBIN-teszt"]
[null,null,"Belbin-féle csapattag-típus kérdőív"]
[]
[null,null,"A pontszámok rövid értelmezése:\nA legtöbb pontot kapott funkció lesz az, amelyben a csapatmunka során a leginkább sikeresnek bizonyulhat. A második legmagasabb pontszám másodlagos csoportszerepét jelzi, amelyet szintén be tud tölteni, ha az elsőre nincs szükség. A két legalacsonyabb pontszám azokhoz a funkciókhoz tartozik, amelyek betöltésére valószínűleg kevéssé alkalmas. Ahelyett, hogy ezeket pótolni próbálná, keressen olyan munkatársakat, akik ebből a szempontból tehetségesebbek."]
[]
[]
[]
[]
[]
[]
[]
[]
[]
[]
[null,null,null,null,null,null,null,null,"Az Ön pontszámai a teszt alapján"]
[null,null,null,null,null,null,1,{"$f":"LARGE(Értékelés!$M$16:$M$23,G16)","v":11},{"$f":"INDEX(Értékelés!$C$16:$Q$23,MATCH(Szerepek!G16,Értékelés!$Q$16:$Q$23,0),1)","v":"FORRÁSFELTÁRÓ"}]
[null,null,null,null,null,null,2,{"$f":"LARGE(Értékelés!$M$16:$M$23,G17)","v":11},{"$f":"INDEX(Értékelés!$C$16:$Q$23,MATCH(Szerepek!G17,Értékelés!$Q$16:$Q$23,0),1)","v":"HELYZETÉRTÉKELŐ"}]
[null,null,null,null,null,null,3,{"$f":"LARGE(Értékelés!$M$16:$M$23,G18)","v":9},{"$f":"INDEX(Értékelés!$C$16:$Q$23,MATCH(Szerepek!G18,Értékelés!$Q$16:$Q$23,0),1)","v":"VÁLLALATÉPÍTŐ"}]
[null,null,"<---\nVISSZA",null,null,null,4,{"$f":"LARGE(Értékelés!$M$16:$M$23,G19)","v":9},{"$f":"INDEX(Értékelés!$C$16:$Q$23,MATCH(Szerepek!G19,Értékelés!$Q$16:$Q$23,0),1)","v":"ÖTLETGYÁRTÓ"},null,null,null,"--->\nTOVÁBB"]
[null,null,null,null,null,null,5,{"$f":"LARGE(Értékelés!$M$16:$M$23,G20)","v":9},{"$f":"INDEX(Értékelés!$C$16:$Q$23,MATCH(Szerepek!G20,Értékelés!$Q$16:$Q$23,0),1)","v":"MEGVALÓSÍTÓ"}]
[null,null,null,null,null,null,6,{"$f":"LARGE(Értékelés!$M$16:$M$23,G21)","v":7},{"$f":"INDEX(Értékelés!$C$16:$Q$23,MATCH(Szerepek!G21,Értékelés!$Q$16:$Q$23,0),1)","v":"ELNÖK"}]
[null,null,null,null,null,null,7,{"$f":"LARGE(Értékelés!$M$16:$M$23,G22)","v":7},{"$f":"INDEX(Értékelés!$C$16:$Q$23,MATCH(Szerepek!G22,Értékelés!$Q$16:$Q$23,0),1)","v":"SERKENTŐ"}]
[null,null,null,null,null,null,8,{"$f":"LARGE(Értékelés!$M$16:$M$23,G23)","v":7},{"$f":"INDEX(Értékelés!$C$16:$Q$23,MATCH(Szerepek!G23,Értékelés!$Q$16:$Q$23,0),1)","v":"CSAPATJÁTÉKOS"}]
[]
[]
[]
[]
[]
[]
[null,null,"BELBIN-teszt"]
[null,null,"Belbin-féle csapattag-típus kérdőív"]
[]
[null,null,"A Vállalatépítő\nA Vállalatépítő fegyelmezett személyiség. Lelkiismeretes, tisztában van kötelességeivel, fejlett énképpel rendelkezik, belülről irányított. Bizonyos értelemben makacs személyiség. Gyakorlatias gondolkodású, megbízik másokban, toleráns velük szemben és végül konzervatív abban az értelemben, hogy tiszteletben tartja a fennálló viszonyokat és gondolkodásmódot. A követelményekhez igazodik, elfogadja a korlátokat. Erős igénye van a rendezett viszonyokra. Az elvi elképzelések alapján cselekvési programot készít és gondoskodik a közös tervek szisztematikus és hatékony végrehajtásáról. Fontos tulajdonsága, hogy a vállalat érdekében dolgozik, és nem a saját érdekeit tekinti elsődlegesnek. A közös célkitűzésekkel úgy azonosul, mintha azok morális természetűek lennének. Sosem jutna eszébe azért nem elvégezni a feladatát, mert nem érdekli, vagy mert nincs kedve hozzá. Sok Vállalatépítő együtt nem alkot jó csoportot. Kísérleti helyzetben koncentráltan, komoly erőfeszítéssel dolgoznak, de eredeti ötlet nélkül. Emellett rugalmatlannak bizonyultak, miután rögzítették az irányelveket, nemigen voltak hajlandóak ezeken változtatni. Ragaszkodtak ahhoz, amit egyszer elindítottak, és zavar keletkezett, ha a terveket módosítani kellett."]
[]
[]
[]
[]
[]
[]
[]
[]
[]
[]
[]
[]
[]
[]
[null,null,"<---\nVISSZA",null,null,null,null,null,"↑ FEL ↑",null,null,null,"--->\nTOVÁBB"]
[]
[]
[]
[]
[]
[]
[]
[]
[]
[]
[]
[]
[]
[]
[]
[]
[]
[]
[]
[]
[]
[]
[]
[]
[]
[]
[]
[]
[]
[]
[]
[null,null,"BELBIN-teszt"]
[null,null,"Belbin-féle csapattag-típus kérdőív"]
[]
[null,null,"Az Elnök\nAz Elnök sikeres irányító. Megbízik az emberekben, féltékenység és gyanakvás nélkül elfogadja őket. Erős a hatalomgyakorlásra való törekvése, morális elkötelezettsége a külső célok iránt. Tekintéllyel rendelkezik. A viták során nyugodt, nem jön zavarba, realista módon gondolkodik, fegyelmezett. Megvan benne az extrovertáltakra jellemző lelkesedés, amely motiváló erővel bír, társas kapcsolataiban azonban távolságtartó. Olyan személy, akit nem befolyásol a csoport, mint egész. Olyan ember, aki toleráns ahhoz, hogy mindenkit meghallgasson, de elég erős, hogy ne fogadjon el minden tanácsot. Ő az, aki tudja, hogyan kell a rendelkezésre álló erőforrásokat felhasználni, ha emberekkel kell bánni, kivételes alkalmazkodóképességről tesz tanúbizonyságot. Mindig ura marad a helyzetnek, saját belátásai alapján ítél, állandóan szem előtt tartva, hogy az adott körülmények milyen lépéseket kívánnak meg. A jó Elnök átlagos intellektussal rendelkezik. Kísérletek szerint a kevésbé intelligens Elnök vagy kimaradt a vitákból (mert nem sikerült megértenie az egyes javaslatok lényegét, és az érveket), vagy mindenáron kézben tartotta az irányítást, és saját, túlságosan egyszerű elképzelései alapján hozta meg a döntést. A túlságosan intelligens Elnök által vezetett kísérleti csoportok is viszonylag gyengén teljesítettek. Az összetett problémák túlságosan elvonták a figyelmét, egymaga irányította a dolgok menetét, a csoporttal való kommunikáció akadozott."]
[]
[]
[]
[]
[]
[]
[]
[]
[]
[]
[]
[]
[]
[]
[null,null,"<---\nVISSZA",null,null,null,null,null,"↑ FEL ↑",null,null,null,"--->\nTOVÁBB"]
[]
[]
[]
[]
[]
[]
[]
[]
[]
[]
[]
[]
[]
[]
[]
[]
[]
[]
[]
[]
[]
[]
[]
[]
[]
[]
[]
[]
[]
[]
[]
[null,null,"BELBIN-teszt"]
[null,null,"Belbin-féle csapattag-típus kérdőív"]
[]
[null,null,"A Serkentő\nAktív, extrovertált személyiség. A csapatmunkához szokott személyekkel ellentétes tulajdonságokkal rendelkezik. Provokál, vitatkozik, türelmetlen, gyakran érzi úgy, hogy kudarcot vallott. Kissé erőszakos természetű, örül a harcnak, amelyben győzni akar. Ha veszt, akár a szabályokat is kétségbe vonja, ha lehetőség nyílik rá, akár jogosulatlan előnyre is szert akar tenni. Ha már nem kell a győzelemre koncentrálnia, akkor (a csoport gyenge teljesítménye után intenzívebben) foglalkozik a tanulságokkal is. Jó felfogóképességgel rendelkezik, de nem túl alapos, makacs, érzelemvezérelt, aki hevesen reagál a kudarcokra, ugyanakkor nem tart másoktól, nem jön zavarba. A Serkentők által vezetett csoportnak nincs más választása, mit az aktív munkálkodás. Ha a tagok hajlamosak voltak ölbe tett kézzel kivárni, hogyan alakulnak az események, a Serkentő közreműködése egyensúlyt teremtett, és javította a teljesítményt. A lelassult rendszert lendületbe hozza, és ha kell, más célok felé irányítja. Ha a Serkentő természetes aktivitása, állhatatossága és érdekérvényesítő képessége kellő mozgásteret kap, sikeres irányítója lehet a teamnek."]
[]
[]
[]
[]
[]
[]
[]
[]
[]
[]
[]
[]
[]
[]
[null,null,"<---\nVISSZA",null,null,null,null,null,"↑ FEL ↑",null,null,null,"--->\nTOVÁBB"]
[]
[]
[]
[]
[]
[]
[]
[]
[]
[]
[]
[]
[]
[]
[]
[]
[]
[]
[]
[]
[]
[]
[]
[]
[]
[]
[]
[]
[]
[]
[]
[null,null,"BELBIN-teszt"]
[null,null,"Belbin-féle csapattag-típus kérdőív"]
[]
[null,null,"Az Ötletgyártó\nA legkreatívabb csoporttag. Új elképzeléseket és stratégiákat dolgoz ki azoknak a problémáknak a megoldására, amelyekkel a csoportnak szembe kell néznie. Hajlamos módosítani a feladatot, melyet kijelölnek számára, gyakran előfordul, hogy egyszerűen nem érdekli a kiadott probléma. Előfordul, hogy felületességre utaló hibákat követ el, a részletek nem kötik le a figyelmét. Inkább introvertált személyiség, akire az ész és az eredetiség fogalmak illenek, gyakran zárkózott csodabogárnak, hóbortos zseninek tartják. Az Ötletgyártó akkor leghasznosabb a csoport számára, ha felismerik képességeit, megfelelő szerepet és tág működési teret biztosítanak számára, de emellett folytonosan a közös célkitűzésének irányába terelgetik, nem engedve, hogy meddő gondolatmenetekbe bonyolódjék. A vállalatoknál nagy érték, de csak abban az esetben, ha hasonló kaliberű elmében partnerre lel (pl. egy erős Elnök, aki vállalja a valódi felelősséget)."]
[]
[]
[]
[]
[]
[]
[]
[]
[]
[]
[]
[]
[]
[]
[null,null,"<---\nVISSZA",null,null,null,null,null,"↑ FEL ↑",null,null,null,"--->\nTOVÁBB"]
[]
[]
[]
[]
[]
[]
[]
[]
[]
[]
[]
[]
[]
[]
[]
[]
[]
[]
[]
[]
[]
[]
[]
[]
[]
[]
[]
[]
[]
[]
[]
[null,null,"BELBIN-teszt"]
[null,null,"Belbin-féle csapattag-típus kérdőív"]
[]
[null,null,"A Forrásfeltáró\nKifejezetten extrovertált, az Ötletgyártóhoz hasonlóan kreatív személyiség. Legfőbb erénye, hogy fogékony az új ötletekre, ám ezek nem csak saját elképzelések voltak, hanem főképp a társak ötlettöredékeit képes összegyűjteni és továbbfejleszteni. A csoporton kívüli erőforrások felkutatása ideális feladat számára. Ha valamit meg akar tudni, mások közreműködését veszi igénybe. Minden elérhető és látszólag elérhetetlen információt begyűjt. Alkalmazkodó, élelmes, rugalmas, nagy ismeretségi körrel bír. Folyton érdeklődik, tudni akarja, mi történik, keresi mások társaságát, és jó kérdéseket igyekszik feltenni nekik. A Forrásfeltáró olyan személy, aki „soha nincs a szobájában, vagy, ha ott van, akkor telefonál”. Néha talán kissé öntörvényűen „vadászik”. A kapcsolatteremtő munka lehetőséget biztosít számára, hogy új javaslatokkal álljon elő, könnyen megtalálja helyét a teamben."]
[]
[]
[]
[]
[]
[]
[]
[]
[]
[]
[]
[]
[]
[]
[null,null,"<---\nVISSZA",null,null,null,null,null,"↑ FEL ↑",null,null,null,"--->\nTOVÁBB"]
[]
[]
[]
[]
[]
[]
[]
[]
[]
[]
[]
[]
[]
[]
[]
[]
[]
[]
[]
[]
[]
[]
[]
[]
[]
[]
[]
[]
[]
[]
[]
[null,null,"BELBIN-teszt"]
[null,null,"Belbin-féle csapattag-típus kérdőív"]
[]
[null,null,"A Helyzetértékelő\nMegfontolt, komoly gondolkodású, természeténél fogva mentes a túlzott lelkesedéstől. Lassan hozza meg döntéseit, szereti többször átgondolni a dolgokat, minden tényezőt figyelembe vesz. A képzeletgazdagság nem erőssége, viszont ritkán téved. Kevéssé teljesítmény-orientált, alulmotiváltnak is nevezhető. Ez azonban gyakran komoly előnyök forrása: a motiváltság nem befolyásolja a véleményalkotás folyamatát, elfogulatlan, képes a problémákat bizonyos távolságból szemlélni. Ítélőképességét az érzelmi ráhatás és az előítéletek nem homályosítják el. A lehetőségek mindegyikét alaposan szemügyre veszi, minden javaslatot megfontol, egyetlen ellenvetést sem hagy figyelmen kívül, a legkevésbé ígéretes lehetőséget sem veti el részletes megvitatás nélkül. Külső szemlélő számára kissé száraz, unalmas, túlságosan kritikus. Optimális szerep számára a nagy horderejű döntések. Minél több javaslat van terítéken, minél bonyolultabb a döntési mechanizmus, annál nagyobb a szerepe a csoportban. Azokban a helyzetekben, feladatkörökben érzi legjobban magát, ahol a siker, illetve a kudarc viszonylag kisszámú, de annál nagyobb horderejű döntésen múlik."]
[]
[]
[]
[]
[]
[]
[]
[]
[]
[]
[]
[]
[]
[]
[null,null,"<---\nVISSZA",null,null,null,null,null,"↑ FEL ↑",null,null,null,"--->\nTOVÁBB"]
[]
[]
[]
[]
[]
[]
[]
[]
[]
[]
[]
[]
[]
[]
[]
[]
[]
[]
[]
[]
[]
[]
[]
[]
[]
[]
[]
[]
[]
[]
[]
[null,null,"BELBIN-teszt"]
[null,null,"Belbin-féle csapattag-típus kérdőív"]
[]
[null,null,"A Csapatjátékos\nJellegzetes tagja a csoportoknak: képes odafigyelni másokra, elhárítja a súrlódásokat, a nehezen kezelhető emberek erőfeszítéseit a csoport javára fordítja. Tevékenysége következtében javul az általános morál. Nem ritkán megtalálható a felső vezetők között is, főképp, ha a környezet konfliktussal teli, ahol szükség van taktikai, diplomáciai érzékére, mások iránti figyelmére. Részvételével olajozottabban mennek a dolgok, szorosabb az együttműködés, jobb a munkamorál. Vezetőként az erőszak helyett a rábeszélés eszközét alkalmazza inkább. Társas kapcsolatai szempontjából inkább az extrovertáltakhoz hasonlít, viszont kevésbé törekszik hatalmi pozíciók megszerzésére. Másokban megbízó, érzékeny személyiség."]
[]
[]
[]
[]
[]
[]
[]
[]
[]
[]
[]
[]
[]
[]
[null,null,"<---\nVISSZA",null,null,null,null,null,"↑ FEL ↑",null,null,null,"--->\nTOVÁBB"]
[]
[]
[]
[]
[]
[]
[]
[]
[]
[]
[]
[]
[]
[]
[]
[]
[]
[]
[]
[]
[]
[]
[]
[]
[]
[]
[]
[]
[]
[]
[]
[null,null,"BELBIN-teszt"]
[null,null,"Belbin-féle csapattag-típus kérdőív"]
[]
[null,null,"A Megvalósító\nGyakran észlelt probléma a csoportos munkavégzés kapcsán, hogy egy-egy apró hiba felborítja az egész, alaposan felépített stratégiát, ahogy az angol közmondás tartja: „A csatát egy ló miatt, a lovat egy patkó miatt, a patkót egy szög miatt vesztették el”. A csapatmunka során a Megvalósító az, aki figyel a részletekre, megvan benne az a képesség, hogy a feladatokat, melyeket elkezdett, be is fejezi. A Megvalósító funkciójának betöltetlensége több ízben jár azzal a következménnyel, hogy egyes csoportok a célegyenesben vallanak kudarcot. Előre tud tervezni, biztosítja, hogy semmit ne hagyjon figyelmen kívül a csoport, a részletes terv minden célkitűzése teljesüljön. Fegyelmezett, önmagán uralkodni képes személyiség, társai nyugodtnak tartják, olyannak, akit nem lehet kihozni a sodrából. Többre értékeli a kitartó erőfeszítést, a túlélés képességét, a következetességet, mint a látványos sikert. A Megvalósító nem csak önmaga, hanem az egész csoport érdekében teljesít."]
[]
[]
[]
[]
[]
[]
[]
[]
[]
[]
[]
[]
[]
[]
[null,null,"<---\nVISSZA",null,null,null,null,null,"↑ FEL ↑",null,null,null,"--->\nTOVÁBB"]